Cogmind - Beta 15 @@@ ROGUE MODE // 2025.09.05 @ 13:50:17 Player: Hartman Result: Destroyed by D-53 Grenadier with Mini Grenade Launcher Performance ------------- Evolutions (1) 500 Regions Visited (3) 600 Robots Destroyed (8) 40 Value Destroyed (172) 172 Prototype IDs (3) 60 Alien Tech Used (0) 0 Bonus (200) 200 TOTAL SCORE: 1572 Bonus ------- Pacifist 200 Cogmind --------- Core Integrity 0/400 Matter 300/300 Energy 100/100 System Corruption 0% Temperature Cool (0) Movement Core (50) Location -9/Mines Parts ------- > --- POWER (1) -------- (None) > --- PROPULSION (2) --- (None) > --- UTILITY (4) ------ Advanced ECM Suite > --- WEAPON (2) ------- (None) > --- INVENTORY (5) ---- Datajack Peak State ------------ > --- POWER ------------ (None) > --- PROPULSION ------- Flight Unit > --- UTILITY ---------- Structural Scanner Experimental Sensor Array Advanced ECM Suite > --- WEAPON ----------- Beamcaster > --- INVENTORY -------- Light Angular Momentum Engine Gauss Rifle Datajack [Rating: 21] Favorites ----------- Power Ion Engine Engine Ion Engine Propulsion Flight Unit Leg Aluminum Leg Wheel Wheel Flight Unit Flight Unit Utility Structural Scanner Device Structural Scanner Storage Small Storage Unit Protection Light Armor Plating Weapon Small Laser Energy Gun Small Laser Ballistic Gun Light Assault Rifle Piercing Weapon Makeshift Spear Special Melee Weapon Datajack Build | -11 -10 -9 -9 ------- Run | Yrd Mat Mat Min Slots Evolved 2 | . . 2 . Power . | . . . . Propulsion . | . . . . Utility 2 | . . 2 . Weapon . | . . . . Parts Attached 23 | 6 1 9 7 Power 2 | 1 . 1 . Engine 2 | 1 . 1 . Core . | . . . . Reactor . | . . . . Propulsion 7 | 2 . 4 1 Treads . | . . . . Leg 2 | 2 . . . Wheel 2 | . . 2 . Hover . | . . . . Flight 3 | . . 2 1 Utility 7 | 1 1 2 3 Device 4 | . 1 1 2 Storage 1 | 1 . . . Processor . | . . . . Hackware . | . . . . Protection 2 | . . 1 1 Artifact . | . . . . Weapon 7 | 2 . 2 3 Energy Gun 3 | 2 . . 1 Energy Cannon . | . . . . Ballistic Gun 2 | . . 2 . Ballistic Cannon . | . . . . Launcher . | . . . . Special Weapon . | . . . . Impact Weapon . | . . . . Slashing Weapon . | . . . . Piercing Weapon 1 | . . . 1 Special Melee Weapon 1 | . . . 1 Unidentified Prototypes 1 | . . . 1 Parts Lost 12 | . . 7 5 Power 1 | . . 1 . Propulsion 6 | . . 3 3 Utility 3 | . . 1 2 Weapon 2 | . . 2 . Highest Loss Streak 7 | . . 7 2 To Critical Strikes . | . . . . Average Backups 3 | 2 4 3 2 Power . | 1 1 1 . Propulsion . | 1 2 . . Utility . | . . . . Weapon . | . 1 . 1 Tool/Special . | . . . . Unused Backups 5 | . . 2 3 Power 3 | . . 1 2 Propulsion . | . . . . Utility 1 | . . 1 . Weapon 1 | . . . 1 Tool/Special . | . . . . Average Slot Usage (%) 57 | . 93 58 49 Engine 5 | . 14 9 1 Leg 5 | . 28 7 . Wheel 1 | . . 3 . Flight 10 | . . 10 12 Device 16 | . 8 6 24 Storage 3 | . 14 5 . Protection 1 | . . 1 1 Energy Gun 7 | . 28 5 4 Ballistic Gun 4 | . . 8 3 Peak Build Rating 21 | 6 7 8 21 Average Rating 9 | 3 6 5 12 On Entrance 4 | . 6 7 6 Naked Turns . | . . . . Heaviest Build 13 | 12 13 13 10 Greatest Support 26 | 20 20 26 8 Greatest Overweight (x) 2 | . . 1 2 Average Overweight (x) . | . . . . Largest Inventory Capacity 8 | 8 8 8 5 Average Capacity 5 | 6 8 6 5 Most Carried 7 | 5 6 7 5 Average Carried 3 | 3 4 3 2 Final Capacity 8 | 8 8 5 5 Final Carried 6 | 4 6 1 1 Class Distribution -------------------- 54% | Mutant 45% | Infiltrator-Mutant Dominant Class ---------------- Mutant | -10/Materials Mutant | -9/Materials Infiltrator-Mutant | -9/Mines Resources | -11 -10 -9 -9 ----------- Run | Yrd Mat Mat Min Matter Collected 473 | 182 . 193 98 Remotely . | . . . . Salvage Created 294 | . . 261 33 Parts 18 | . . 17 1 Haulers Intercepted . | . . . . Recyclers Shooed . | . . . . Parts Field Recycled . | . . . . Retrieved Matter . | . . . . Parts Self-Destructed . | . . . . Prevented . | . . . . Kills | -11 -10 -9 -9 ------- Run | Yrd Mat Mat Min Combat Hostiles Destroyed 7 | . . 5 2 Guns 7 | . . 5 2 Classes Destroyed 4 | . . 4 . Recycler 1 | . . 1 . Swarmer 4 | . . 2 2 Grunt 2 | . . 2 . Sentry 1 | . . 1 . Best Kill Streak 6 | . . 6 1 Combat Bots Only 5 | . . 5 1 Max Kills in Single Turn 1 | . . 1 1 Gunslinging . | . . . . Exploded . | . . . . Melee . | . . . . Uniques/NPCs Destroyed . | . . . . Combat | -11 -10 -9 -9 -------- Run | Yrd Mat Mat Min Hostile Shots Fired 139 | . 7 101 31 Missed 41 | . 2 33 6 Hits 98 | . 5 68 25 Projectile 98 | . 5 68 25 AOE 6 | . . . 6 Critical Strikes 1 | . . 1 . Damage Taken 1218 | . 60 723 435 Core 421 | . 13 174 234 Absorbed by Shields . | . . . . Core Remaining (%) 97 | 100 94 . . Volleys Fired 28 | . 1 21 6 Largest 2 | . 2 2 1 Hottest 80 | . 80 43 75 Shots Fired 43 | . 2 35 6 Gun 43 | . 2 35 6 Cannon . | . . . . Launcher . | . . . . Special . | . . . . Kinetic 36 | . . 35 1 Thermal 7 | . 2 . 5 Explosive . | . . . . Electromagnetic . | . . . . Robot Hit Streak 7 | . . 7 2 Robot Miss Streak 4 | . 2 4 1 Penetration Max . | . . . . Secondary Targets 2 | . . 2 . Max Gunslinging Chain 1 | . . 1 . Shots Hit Robots 29 | . . 22 7 Core Hits 14 | . . 12 2 Critical Kills . | . . . . Critical Parts Destroyed . | . . . . Critical Strikes . | . . . . Melee Attacks 3 | . . . 3 Impact . | . . . . Slashing . | . . . . Piercing . | . . . . Sneak Attacks 3 | . . . 3 Combat Hostiles . | . . . . Follow-up Attacks . | . . . . Damage Inflicted 328 | . . 247 81 Guns 319 | . . 247 72 Cannons . | . . . . Explosions . | . . . . Melee . | . . . . Ramming 9 | . . . 9 Kinetic 255 | . . 247 8 Thermal 64 | . . . 64 Explosive . | . . . . Electromagnetic . | . . . . Impact . | . . . . Slashing . | . . . . Piercing . | . . . . Highest Corruption 1 | . 1 . . Average Corruption 1 | . 1 . . Corruption Purged . | . . . . Corruption Blocked . | . . . . Overload Shots . | . . . . Overflow Damage . | . . . . Projectiles . | . . . . Explosions . | . . . . Melee . | . . . . Knockbacks . | . . . . Impact . | . . . . Kinetic . | . . . . Secondary . | . . . . Self-Inflicted Damage 4 | . . . 4 Shots . | . . . . Rammed 2 | . . . 2 Targets Rammed 2 | . . . 2 Kicked . | . . . . Crushed . | . . . . Highest Temperature 80 | . 18 6 80 Average Temperature 22 | . 12 2 36 Received Heat Transfer 270 | . 36 183 51 Siege Activations . | . . . . Martial Activations . | . . . . Shielding Activations . | . . . . Robots Disrupted . | . . . . Combat Hostiles . | . . . . Robots Corrupted . | . . . . Combat Hostiles . | . . . . Parts Fried . | . . . . Impact Corruptions . | . . . . Robots Melted . | . . . . Combat Hostiles . | . . . . Parts Melted . | . . . . Heat Transferred 111 | . . . 111 Parts Sabotaged . | . . . . Parts Stolen . | . . . . Parts Stripped . | . . . . Power Chain Reactions . | . . . . Alert | -11 -10 -9 -9 ------- Run | Yrd Mat Mat Min Maximum Alert Level . | . . . . Low Security (%) 100 | 100 100 100 100 Level 1 . | . . . . Level 2 . | . . . . Level 3 . | . . . . Level 4 . | . . . . Level 5 . | . . . . High Security . | . . . . Max Security . | . . . . Peak Influence 172 | . 5 172 66 Initial 66 | . . . 66 Average 25 | . . 65 10 Influence Increases 407 | . 5 317 85 Destroy 0b10 Robot/C 140 | . . 100 40 Destroy 0b10 Robot/NC 5 | . . 5 . Destroy Leader 20 | . . 20 . Successful Hack 17 | . 5 12 . Partial Spotted 45 | . . 45 . Lose Combat Pursuer 180 | . . 135 45 Influence Decreases 407 | . 5 145 257 Entered New Map 106 | . . . 106 Time Decay 242 | . 5 110 127 Lost Part 59 | . . 35 24 Squads Dispatched 3 | . . 2 1 Investigation 1 | . . . 1 Extermination . | . . . . Reinforcement 2 | . . 2 . Assault . | . . . . Garrison . | . . . . Intercept . | . . . . Searches Triggered . | . . . . Construction Impeded . | . . . . Haulers Reinforced . | . . . . Active Scanning Responses . | . . . . Cargo Convoy Interrupts . | . . . . Stealth | -11 -10 -9 -9 --------- Run | Yrd Mat Mat Min Distress Signals 2 | . . 2 . Communications Jammed . | . . . . Distress Signals . | . . . . Times Spotted 35 | . 4 20 11 Peak Tracking Total 11 | . 4 11 3 Tactical Retreats 8 | . . 6 2 Traps | -11 -10 -9 -9 ------- Run | Yrd Mat Mat Min Traps Triggered 1 | . 1 . . Indirectly . | . . . . Trap Hack Attempts . | . . . . Triggered . | . . . . Disarmed . | . . . . Reprogrammed . | . . . . Reused . | . . . . Traps Extracted . | . . . . Installed . | . . . . Triggered . | . . . . Machines | -11 -10 -9 -9 ---------- Run | Yrd Mat Mat Min Machines Disabled . | . . . . Max in Single Turn . | . . . . Machines Repaired . | . . . . Machines Dismantled . | . . . . Machines Sabotaged . | . . . . Overloaded Fab Kills . | . . . . Hacking | -11 -10 -9 -9 --------- Run | Yrd Mat Mat Min Machines Accessed 4 | . 1 2 1 Terminals 3 | . 1 2 . Fabricators . | . . . . Repair Stations . | . . . . Recycling Units . | . . . . Scanalyzers . | . . . . Garrison Access . | . . . . Total Hacks 7 | . 3 3 1 Successful 4 | . 1 2 1 Failed 3 | . 2 1 . Catastrophic . | . . . . Database Lockouts . | . . . . Manual . | . . . . Terminals 6 | . 3 3 . Fabricators . | . . . . Repair Stations . | . . . . Recycling Units . | . . . . Scanalyzers . | . . . . Garrison Access . | . . . . Terminal Hacks 4 | . 1 2 1 Prototype ID Bank 1 | . . 1 . Open Door 1 | . . . 1 Branch Access Points 1 | . . 1 . Zone Layout 1 | . 1 . . Fabricator Hacks . | . . . . Repair Station Hacks . | . . . . Recycling Unit Hacks . | . . . . Scanalyzer . | . . . . Garrison Access Hacks . | . . . . Unauthorized Hacks . | . . . . Terminals . | . . . . Fabricators . | . . . . Repair Stations . | . . . . Recycling Units . | . . . . Scanalyzers . | . . . . Garrison Access . | . . . . Data Cores Recovered . | . . . . Used . | . . . . Hacking Detections 2 | . 1 1 . Full Trace Events . | . . . . Feedback Events . | . . . . Feedback Blocked . | . . . . Robot Schematics Acquired . | . . . . Robots Built . | . . . . Authchips . | . . . . Time . | . . . . Total Robot Build Rating . | . . . . Part Schematics Acquired . | . . . . Parts Built . | . . . . Authchips . | . . . . Time . | . . . . Total Part Build Rating . | . . . . Parts Repaired . | . . . . Time . | . . . . Parts Recycled . | . . . . Recycled Matter . | . . . . Retrieved Matter . | . . . . Retrieved Components . | . . . . Parts Scanalyzed . | . . . . Part Schematics Acquired . | . . . . Parts Damaged . | . . . . Bothacking | -11 -10 -9 -9 ------------ Run | Yrd Mat Mat Min Used RIF Installer . | . . . . Robots Hacked 2 | . . . 2 Non-combat 2 | . . . 2 Combat . | . . . . Robot Hacks Applied 2 | . . . 2 no_distress 2 | . . . 2 Relay Couplers Released . | . . . . Fabnet Peak Effective % . | . . . . Robots Rewired . | . . . . Allies Hacked . | . . . . Hacks Repelled . | . . . . Allies | -11 -10 -9 -9 -------- Run | Yrd Mat Mat Min Total Allies . | . . . . Largest Group . | . . . . Highest-Rated Group . | . . . . Highest-Rated Ally . | . . . . Total Orders . | . . . . Ally Attacks . | . . . . Total Damage . | . . . . Kills . | . . . . Allies Corrupted . | . . . . Allies Melted . | . . . . Intel | -11 -10 -9 -9 ------- Run | Yrd Mat Mat Min Active Infowar (turns) 824 | . 79 188 557 Sensors 238 | . . . 238 Structural 617 | . . 60 557 Seismic 207 | . 79 128 . ECM 5 | . . . 5 Robot Analysis Total . | . . . . Derelict Logs Recovered 1 | . . . 1 Drone Launches . | . . . . Drone Recoveries . | . . . . Exploration | -11 -10 -9 -9 ------------- Run | Yrd Mat Mat Min Turns Passed 1060 | 60 118 318 564 Spaces Moved 928 | 46 81 365 436 Core 21 | 16 . . 5 Treads . | . . . . Legs 191 | 30 81 80 . Wheels 17 | . . 17 . Hover . | . . . . Flight 699 | . . 268 431 Fastest Speed 37 | 50 120 37 37 Average Speed 86 | 95 120 57 103 Slowest Speed 200 | 120 120 190 200 Overloaded Moves . | . . . . Propulsion Burnouts . | . . . . Robots Hopped 3 | . . 3 . Potential Cave-ins . | . . . . Cave-ins Triggered . | . . . . Exploration Rate (%) 32 | 4 20 42 62 Regions Visited 3 Branch Regions 1 Pre-discovered Areas . | . . . . Known Exits Taken 1 | . . 1 . Unknown Exits Taken 2 | 1 1 . . Scrap Searched 2 | . . . 2 Spaces Dug . | . . . . Terrain Destroyed . | . . . . Melee . | . . . . Projectile . | . . . . AOE . | . . . . Terrain Rammed . | . . . . Walls Destroyed . | . . . . Machines Disabled . | . . . . Actions | -11 -10 -9 -9 --------- Run | Yrd Mat Mat Min Total 1149 | 62 100 442 545 Wait 123 | 1 15 40 67 Move 919 | 45 80 358 436 Hop 3 | . . 3 . Pick Up 28 | 10 3 6 9 Fast Attach . | . . . . Attach 22 | 6 1 8 7 Detach 4 | . . . 4 Swap 3 | . . 1 2 Drop 14 | . . 5 9 Fire 28 | . 1 21 6 Melee 3 | . . . 3 Ram 2 | . . . 2 Kick . | . . . . Crush . | . . . . Escape Stasis . | . . . . Rewire . | . . . . Trap . | . . . . Miscellaneous . | . . . . Route ------- -11/Scrapyard -10/Materials -9/Materials -9/Mines History --------- Turn | Location | Event 7 | -11/Scrapyard | Discovered new exit (range 14) 61 | -11/Scrapyard | Entered Materials 131 | -10/Materials | Discovered new exit (range 16) 179 | -10/Materials | Entered another Materials area 179 | -9/Materials | Evolved 2 slots: Utility x2 317 | -9/Materials | Build established: Mutant 357 | -9/Materials | Lost 7 parts (1p3n1u2w) 402 | -9/Materials | Identified exit to Mines 497 | -9/Materials | Entered Mines 526 | -9/Mines | A weapon hastily lodged in a ceiling crevice suddenly fell to the ground 604 | -9/Mines | Met a Derelict shopkeep closing up shop 608 | -9/Mines | Found Powered Armor 688 | -9/Mines | Core integrity fell below 50% 749 | -9/Mines | Learned location of 1 exit from Proximity Caves 811 | -9/Mines | Found a damaged Exp. Sensor Array with a note attached 815 | -9/Mines | Found Prototype Device 816 | -9/Mines | Identified Exp. Sensor Array 881 | -9/Mines | Build established: Infiltrator-Mutant 1035 | -9/Mines | Assembled infested the area 1059 | -9/Mines | Core integrity fell below 20% 1061 | -9/Mines | Destroyed by D-53 Grenadier with Mini Grenade Launcher Last Messages --------------- >>no_distress Distress signal routine blocked. 00985_ Acquired 28 matter. 01008_ Destroyed Flight Unit. 01012_ S-10 Pest destroyed. 01014_ Acquired 10 matter. 01035_ ALERT: Infestation in the mines, dispatching Demolisher response squad. 01054_ Dropped Structural Scanner. 01054_ C-30 ARC bursts open, deploying its payload. 01054_ D-53 Grenadier unfolds itself. 01054_ Exp. Sensor Array destroyed. 01054_ U-05 Engineer lays Concrete. 01055_ Dropped Lgt. Angular Momentum Engine. 01055_ Dropped Gauss Rifle. 01056_ Dropped Beamcaster. 01056_ U-05 Engineer lays Concrete. 01058_ Flight Unit destroyed. 01058_ U-05 Engineer lays Concrete. Map ----- +----------------------------------------------------+ | ?????## ##???#### #### ###?????????????? | | ?????## ##???#### ####??????????????????? | | ####### ## ? ###### ####???????????????????? | | ####### ## ###### ###????????????????????? | | ## ##?### ##?????????????????????? | | # ###### ###### ###?????????????????????? | | ####### """ ##### ####?????????????????????? | | ###???????""" #### ####??????????????????????? | | ####????????" ### ###???????????????????????? | | ####???######## ###???????????????????????? | | ###??######### ##???????????????????????? | | ##??###""## ##???????????????????????? | | ##??##"]] #X ###???????????????????????? | | ## ###??##" ####???????????????????????? | | #######??##" ######?????????????????????? | | ##?###???##" # #####?????????????????????? | | ##???????###""## ##?????????????????????? | | ##???????####### ##t##?????????????????????? | | ##????????##### ### ##??????????? ?????????? | | ##?????????### ## ##### ##?????????? ##???????? | | ##???????#### ### ##### ##??####### ##???????? | | ##???????## ### ##?######## ##???????? | | ##??????? ########## ###### ????????? | | ##???## ##########r##### % ??????????? | | ##???### ????????## #### %###???????????? | | ##???### ????????# @ ud ####??????????? | | ##????### ????????## r d ##??????????? | | ##????#### ##????????## ##?????????? | | ##?????########????????## #?????????? | | ##??????######?????????## [ #?????????? | | ##?????????????????????## [* ##?????????? | | ???????????????????????# #??????????? | | ???????????????????????### #??????????? | | ## ###########?????### ##??????????? | | ##### ############??????######## # u####?????????? | | #### ##????????######## ###?????????? | | #### ##??##############% ###????????? | | ########## ## ############ ###????????? | | ########## ## ###### #### ##### ##????????? | | ###### ## #### ###[###### ##????????? | | ###### ### ###%##?### ##????????? | | ####### ###### #### ##?## ###????????? | | ####### ## ## *=%% ##?## ###????????? | | ????### ######## [########?### ?????????? | | #???## #################?#### ???????? | | ###### ##???######????????#########???????? | | ###### % ###??????????????????########???????? | | ! ####?????????????????????????????????? | | ####??????????????????????????????????? | | ###### ####???????????????????????????????????? | +----------------------------------------------------+ Best States ------------- Heat Dissipation 28 Energy Generation 10 Energy Capacity 250 Matter Stores 300 Matter Capacity 300 Sight Range 16 Robot Scan Range 20 Terrain Scan Density 10 ECM Strength 2 Armor Coverage 150 Evasion (%) 62 Item Schematics ----------------- None Robot Schematics ------------------ None Fabricated ------------ Nothing Repaired ---------- Nothing Alien Tech Used ----------------- None Achievements -------------- None Challenges ------------ None Game ------ Seed BladePhasingAxe Manual? 0 Play Time 00:18:01 Cumulative 45.5 hours Start 2025.09.05 @ 13:34:12 End 2025.09.05 @ 13:50:17 Sessions 1 Manual Loads 0 Difficulty Rogue Special Mode None Game No. 42 Rogue 42 Adventurer 0 Explorer 0 Win Type - Total 0 Types 0/0/0/0/0/0/0/0/0/0 Lore% 28 Gallery% 32 Achievement% 28 Wizard Run 0 Options --------- Layout 1 ASCII 0 Keyboard 0 Movement Numpad Keybinds 0 Fullscreen 1 Font 24/Smallcaps Map View 50x35 Zoom Use 0% Tactical HUD 1 Map Filters NONE Filters NONE Steam 1 RUN: 50048074-2cbe-4be4-a3d9-4584f3df8b12